bitfinex/quotes_SOLUSD_20250920
["timestamp","ask_amount","ask_price","bid_price","bid_amount"]
[1758331204219,1.34704842,239.95,239.93,50.4434763]
[1758331204391,0.1,239.95,239.93,50.72779944]
[1758331205793,0.1,239.95,239.93,46.55991715]
[1758331205990,1.34704842,239.94,239.93,13.59559401]
[1758331206331,2.01704842,239.94,239.93,45.55559401]
[1758331206517,6.18475701,239.94,239.93,45.55559401]
[1758331207310,5.51475701,239.94,239.93,45.55559401]
[1758331207639,0.1,239.94,239.93,46.27559401]
[1758331207837,0.1,239.94,239.93,50.4434763]
[1758331210333,0.1,239.94,239.93,50.72779944]
[1758331210560,0.1,239.94,239.93,51.97484786]
[1758331211748,0.1,239.94,239.93,50.72779944]
[1758331212042,0.1,239.94,239.93,52.67477614]
[1758331214939,0.1,239.94,239.93,117.07477613]
[1758331216538,0.1,239.94,239.93,83.16779943]
[1758331216720,0.1,239.94,239.93,115.12779943]
[1758331216919,0.1,239.94,239.93,117.07477613]
[1758331222842,0.1,239.94,239.93,85.11477613]
[1758331223043,0.77,239.94,239.93,110.21991714]
[1758331223940,0.77,239.94,239.93,110.07775557]
[1758331224155,0.77,239.94,239.93,110.21991714]
[1758331226254,0.1,239.94,239.93,110.21991714]
[1758331226757,0.1,239.94,239.93,114.38779943]
[1758331227158,0.1,239.94,239.93,115.04779943]
[1758331228240,0.1,239.94,239.93,114.38779943]
[1758331230370,0.1,239.94,239.93,115.04779943]
[1758331259751,0.1,239.94,239.93,116.99477613]
[1758331262185,0.1,239.94,239.93,115.04779943]
[1758331263184,0.1,239.94,239.93,82.44779943]
[1758331263359,0.82,239.94,239.93,49.98779944]
[1758331263761,0.1,239.94,239.93,49.7034763]
[1758331263965,0.1,239.94,239.93,50.66779944]
[1758331264374,0.1,239.94,239.93,49.98779944]
[1758331267963,0.1,239.94,239.93,45.81991715]
[1758331268158,0.82,239.94,239.93,45.81991715]
[1758331268363,0.1,239.94,239.93,45.81991715]
[1758331269888,0.1,239.94,239.93,49.98779944]
[1758331270377,0.1,239.94,239.93,50.66779944]
[1758331271266,0.1,239.94,239.93,49.98779944]
[1758331272901,0.1,239.94,239.93,13.87991715]
[1758331273109,0.82,239.94,239.93,45.81991715]
[1758331274399,0.82,239.94,239.93,110.21991714]
[1758331275197,0.1,239.94,239.93,110.21991714]
[1758331278902,0.1,239.94,239.93,114.38779943]
[1758331279096,0.1,239.94,239.93,115.06779943]
[1758331282997,0.1,239.94,239.93,114.38779943]
[1758331283506,0.1,239.94,239.93,115.06779943]
[1758331284104,0.1,239.94,239.93,114.38779943]
[1758331286897,0.1,239.94,239.93,114.36779943]
[1758331287809,0.1,239.94,239.93,45.51559401]
[1758331288008,2.03652744,239.94,239.93,13.59559401]
[1758331288303,2.03652744,239.94,239.93,45.51559401]
[1758331292895,0.1,239.94,239.93,46.17559401]
[1758331293102,0.1,239.94,239.93,50.3434763]
[1758331294812,0.1,239.94,239.93,50.62779944]
[1758331295021,0.1,239.94,239.93,115.02779943]
[1758331300618,0.1,239.94,239.93,116.27432687]
[1758331301920,0.1,239.94,239.93,115.02779943]
[1758331304430,0.1,239.94,239.93,116.27432687]
[1758331304626,0.1,239.94,239.93,115.02779943]
[1758331304809,0.1,239.94,239.93,116.27432687]
[1758331307222,0.1,239.94,239.93,115.02779943]
[1758331312914,0.1,239.94,239.93,83.10779943]
[1758331313114,0.1,239.94,239.93,115.02779943]
[1758331313520,0.1,239.94,239.93,116.27432687]
[1758331315618,0.1,239.94,239.93,84.35432687]
[1758331315824,0.1,239.94,239.93,116.27432687]
[1758331322854,0.1,239.94,239.93,84.35432687]
[1758331323052,0.1,239.94,239.93,116.27432687]
[1758331324856,0.1,239.94,239.93,117.94471712]
[1758331327156,0.1,239.94,239.93,86.02471712]
[1758331327354,0.1,239.94,239.93,117.94471712]
[1758331327765,0.1,239.94,239.93,85.36471712]
[1758331327938,0.1,239.94,239.93,117.28471712]
[1758331328135,0.1,239.94,239.93,117.93471712]
[1758331329665,0.1,239.94,239.93,84.11818968]
[1758331329959,0.1,239.94,239.93,114.36779943]
[1758331333448,0.1,239.94,239.93,82.44779943]
[1758331333769,0.76,239.94,239.93,114.34779943]
[1758331333942,0.1,239.94,239.93,114.34779943]
[1758331334343,0.76,239.94,239.93,114.34779943]
[1758331335258,0.76,239.94,239.93,82.44779943]
[1758331335563,0.76,239.94,239.93,114.34779943]
[1758331337470,0.76,239.94,239.93,82.44779943]
[1758331337650,0.76,239.94,239.93,114.34779943]
[1758331338377,0.1,239.94,239.93,114.99779943]
[1758331338672,0.1,239.94,239.93,114.34779943]
[1758331341081,0.76,239.94,239.93,114.34779943]
[1758331343277,0.1,239.94,239.93,114.34779943]
[1758331344353,0.1,239.94,239.93,49.94779944]
[1758331344875,0.1,239.94,239.93,50.59779944]
[1758331345174,0.1,239.94,239.93,18.69779944]
[1758331345383,0.1,239.94,239.93,50.59779944]
[1758331345678,0.1,239.94,239.93,49.94779944]
[1758331346780,0.1,239.94,239.93,50.63779944]
[1758331348181,0.1,239.94,239.93,49.94779944]
[1758331354382,0.1,239.94,239.93,114.34779943]
[1758331356184,0.1,239.94,239.93,115.03779943]
[1758331357286,0.1,239.94,239.93,114.34779943]
[1758331357472,0.1,239.94,239.93,82.44779943]
[1758331357672,0.1,239.94,239.93,114.34779943]
[1758331359878,0.1,239.94,239.93,115.03779943]
[1758331362490,0.1,239.94,239.93,114.34779943]
[1758331362791,0.8,239.94,239.93,13.59559401]
[1758331362989,2.74741432,239.94,239.93,13.59559401]
[1758331363287,2.74741432,239.94,239.93,45.49559401]
[1758331363596,46.48057497,239.94,239.93,45.49559401]
[1758331363792,50.64828356,239.94,239.93,45.49559401]
[1758331363970,50.64828356,239.94,239.93,13.59559401]
[1758331364171,50.64828356,239.94,239.93,45.49559401]
[1758331365577,45.78057497,239.94,239.93,45.49559401]
[1758331366080,31.3,239.94,239.93,46.18559401]
[1758331366467,0.1,239.94,239.93,50.3534763]
[1758331367606,0.1,239.94,239.93,52.58521376]
[1758331367774,0.1,239.95,239.94,13.87991715]
[1758331367979,0.1,239.96,239.94,16.51733147]
[1758331368179,0.1,239.96,239.95,48.13300833]
[1758331369305,0.1,239.96,239.95,52.30054323]
[1758331371299,0.1,239.96,239.95,52.58486637]
[1758331371300,1e-08,239.96,239.95,52.58486637]
[1758331373900,1e-08,239.96,239.95,54.25511712]
[1758331375504,1e-08,239.96,239.95,52.58486637]
[1758331380913,0.1,239.99,239.96,64.39999998]
[1758331381079,0.1,239.99,239.98,15.82733147]
[1758331382201,0.1,239.99,239.98,47.70733147]
[1758331382413,0.1,239.99,239.98,48.40733147]
[1758331382584,0.1,239.99,239.98,51.87434538]
[1758331387011,0.1,239.99,239.98,116.27434536]
[1758331387710,0.1,239.99,239.98,116.97434536]
[1758331388507,0.1,239.99,239.98,85.09434536]
[1758331388708,0.1,239.99,239.98,116.97434536]
[1758331390113,0.1,239.99,239.98,116.27434536]
[1758331390409,0.1,239.99,239.98,116.97434536]
[1758331390607,0.1,239.99,239.98,116.27434536]
[1758331393530,0.1,239.99,239.98,116.97434536]
[1758331394911,0.1,239.99,239.98,116.27434536]
[1758331395312,0.1,239.99,239.98,116.97434536]
[1758331395721,0.1,239.99,239.98,115.02693104]
[1758331395919,0.1,239.99,239.98,116.27259972]
[1758331399728,0.1,239.99,239.98,114.32693104]
[1758331401534,0.1,239.99,239.98,115.02693104]
[1758331404536,0.1,239.99,239.98,114.32693104]
[1758331407614,0.1,239.99,239.98,114.98693104]
[1758331407809,0.1,239.99,239.98,116.23259972]
[1758331409134,0.1,239.99,239.98,115.57259972]
[1758331409916,0.1,239.99,239.98,116.23259972]
[1758331412916,0.1,239.99,239.98,82.44693104]
[1758331413136,0.77,239.99,239.98,114.30693104]
[1758331413727,0.1,239.99,239.98,114.30693104]
[1758331414534,0.1,239.99,239.98,114.96693104]
[1758331414733,0.1,239.99,239.98,114.30693104]
[1758331422562,0.1,239.99,239.98,116.21259972]
[1758331427575,0.1,239.99,239.98,114.96693104]
[1758331427742,0.1,239.99,239.98,116.21259972]
[1758331430364,0.1,239.99,239.98,115.55259972]
[1758331430553,0.1,239.99,239.98,116.21259972]
[1758331436572,0.1,239.99,239.98,117.88278072]
[1758331437273,0.1,239.99,239.98,117.92278072]
[1758331440775,0.1,239.99,239.98,117.22278072]
[1758331451663,1e-08,239.99,239.98,117.22278072]
[1758331458008,1e-08,239.99,239.98,117.9225936]
[1758331463282,1e-08,239.99,239.98,104.32699959]
[1758331463486,1e-08,239.99,239.98,117.9225936]
[1758331464686,1e-08,239.99,239.98,84.11711204]
[1758331464891,1e-08,239.99,239.98,115.95711204]
[1758331465192,1e-08,239.99,239.98,117.9025936]
[1758331465504,1e-08,240.0,239.99,13.87991715]
[1758331465824,1e-08,240.0,239.99,15.82539871]
[1758331466111,1e-08,240.0,239.99,21.66228053]
[1758331466789,1e-08,240.0,239.99,8.06668652]
[1758331467488,1e-08,240.0,239.99,21.66228053]
[1758331468323,0.1,240.06,240.0,13.87991715]
[1758331468510,0.1,240.06,240.05,15.82539871]
[1758331468716,0.1,240.06,240.05,112.06539869]
[1758331468927,0.1,240.06,240.05,113.73516137]
[1758331469420,0.1,240.06,240.05,117.90096016]
[1758331471804,1e-08,240.06,240.05,117.90096016]
[1758331478943,0.2,240.09,240.06,78.27991713]
[1758331479170,0.2,240.09,240.08,15.82539871]
[1758331479818,0.2,240.09,240.08,19.99067695]
[1758331480238,1e-08,240.09,240.08,21.66009119]
[1758331481337,0.1,240.11,240.1,15.82539871]
[1758331481535,0.1,240.11,240.1,112.04539869]
[1758331481832,0.1,240.11,240.1,116.21032996]
[1758331482138,0.1,240.11,240.1,117.87953521]
[1758331482438,1e-08,240.11,240.1,117.87953521]
[1758331486549,1e-08,240.11,240.1,130.62297543]
[1758331492453,1e-08,240.11,240.1,128.67749387]
[1758331492640,1e-08,240.11,240.1,130.62297543]
[1758331497745,1e-08,240.11,240.1,128.67749387]
[1758331498065,1e-08,240.11,240.1,130.62297543]
[1758331500668,1e-08,240.11,240.1,131.29297543]
[1758331506374,1e-08,240.11,240.1,130.62297543]
[1758331508482,1e-08,240.11,240.1,131.29297543]
[1758331510964,0.1,240.13,240.11,13.87991715]
[1758331511159,0.1,240.13,240.12,47.64539871]
[1758331511552,0.1,240.13,240.12,49.31453431]
[1758331512780,0.1,240.13,240.12,53.47911868]
[1758331514480,0.1,240.13,240.12,117.87911866]
[1758331515662,0.8,240.13,240.12,117.87911866]
[1758331515874,0.1,240.13,240.12,117.87911866]
[1758331518263,0.8,240.13,240.12,84.1136371]
[1758331518464,0.8,240.13,240.12,114.2445015]
[1758331519768,0.8,240.13,240.12,82.4445015]
[1758331520084,0.8,240.13,240.12,77.99559399]
[1758331520487,0.8,240.13,240.12,109.79559399]
[1758331520864,0.8,240.13,240.12,77.99559399]
[1758331521067,0.8,240.13,240.12,109.79559399]
[1758331524600,0.8,240.13,240.12,77.99559399]
[1758331524999,0.8,240.13,240.12,109.79559399]
[1758331526390,0.8,240.13,240.12,45.39559401]
[1758331531116,0.8,240.13,240.12,13.59559401]
[1758331531411,0.8,240.13,240.12,45.41559401]
[1758331540930,0.1,240.13,240.12,45.41559401]
[1758331543744,0.1,240.13,240.12,51.79893858]
[1758331544238,0.1,240.13,240.12,116.19893856]
[1758331546116,0.1,240.13,240.12,84.37893856]
[1758331546316,0.1,240.13,240.12,116.17893856]
[1758331549745,0.1,240.13,240.12,117.84807416]
[1758331564255,0.1,240.13,240.12,116.6036371]
[1758331564552,0.1,240.13,240.12,117.84807416]
[1758331564754,0.75,240.18,240.13,13.87991715]
[1758331564969,0.1,240.18,240.17,13.87991715]
[1758331565129,0.1,240.18,240.17,45.67991715]
[1758331565530,0.1,240.18,240.17,46.92435421]
[1758331566233,0.1,240.18,240.17,51.77807157]
[1758331567074,0.1,240.18,240.17,51.08807157]
[1758331567239,0.1,240.18,240.17,51.77807157]
[1758331567438,0.1,240.18,240.17,51.08807157]
[1758331568471,0.1,240.18,240.17,51.77807157]
[1758331568769,0.1,240.19,240.18,0.28432314]
[1758331568972,0.1,240.19,240.18,78.27991713]
[1758331569310,0.65,240.32,240.22,13.87991715]
[1758331569574,0.65,240.32,240.26,13.59559401]
[1758331569738,1.24443706,240.32,240.26,45.49559401]
[1758331569941,0.65,240.3,240.26,45.49559401]
[1758331570156,0.65,240.33,240.26,45.49559401]
[1758331570369,0.65,240.33,240.26,48.69265442]
[1758331571167,31.85,240.33,240.26,47.44821736]
[1758331571476,0.1,240.36,240.28,13.87991715]
[1758331571639,0.1,240.36,240.28,47.10435421]
[1758331571838,0.1,240.36,240.28,47.79435421]
[1758331572271,0.1,240.36,240.3,13.59559401]
[1758331572445,0.1,240.36,240.3,46.82003107]
[1758331572653,0.1,240.36,240.3,45.85991715]
[1758331572842,0.1,240.36,240.3,47.10435421]
[1758331573085,0.1,240.36,240.3,48.7721675]
[1758331573457,31.2,240.29,240.19,3.38197108]
[1758331573778,1.24443706,240.24,240.22,32.28]
[1758331573938,0.57,240.23,240.22,32.28]
[1758331574552,0.57,240.23,240.16,16.48713635]
[1758331574553,31.2,240.22,240.16,16.48713635]
[1758331574749,1.24443706,240.19,240.16,12.32325755]
[1758331574958,1.24443706,240.17,240.11,0.1]
[1758331575171,1.24443706,240.13,240.11,0.1]
[1758331575375,1.81443706,240.12,240.11,0.1]
[1758331575667,1.81443706,240.12,240.11,32.44]
[1758331575842,1.81443706,240.12,240.11,0.1]
[1758331576039,33.01443706,240.12,240.11,0.1]
[1758331576241,1.81443706,240.12,240.11,0.1]
[1758331576446,1.81443706,240.12,240.11,13.69559401]
[1758331576654,1.81443706,240.12,240.11,46.05559401]
[1758331577458,1.81443706,240.12,240.11,32.46]
[1758331577844,6.7921853,240.12,240.11,32.46]
[1758331578065,1.81443706,240.12,240.11,32.46]
[1758331578969,0.57,240.17,240.12,13.59559401]
[1758331579158,1.24443706,240.13,240.12,13.59559401]
[1758331579750,1.94508721,240.13,240.12,13.59559401]
[1758331579951,33.14508721,240.13,240.12,13.59559401]
[1758331580252,33.71508721,240.13,240.12,13.59559401]
[1758331580454,2.51508721,240.13,240.12,13.59559401]
[1758331583569,2.51508721,240.13,240.12,45.95559401]
[1758331585451,1.94508721,240.13,240.12,45.95559401]
[1758331585950,2.51508721,240.13,240.12,45.95559401]
[1758331586774,2.51508721,240.13,240.12,13.59559401]
[1758331586953,2.51508721,240.13,240.12,45.93559401]
[1758331588174,2.51508721,240.13,240.12,13.59559401]
[1758331588379,2.51508721,240.13,240.12,45.93559401]
[1758331588876,1.94508721,240.13,240.12,45.93559401]
[1758331591060,2.51508721,240.13,240.12,45.93559401]
[1758331592077,1.94508721,240.13,240.12,45.93559401]
[1758331592579,35.36438673,240.14,240.12,45.93559401]
[1758331592881,1.94508721,240.13,240.12,45.93559401]
[1758331596386,6.10949815,240.13,240.12,45.93559401]
[1758331596794,6.10949815,240.13,240.12,32.34]
[1758331597083,19.20533268,240.13,240.11,0.1]
[1758331597283,1.94508721,240.12,240.11,0.1]
[1758331597669,2.51508721,240.12,240.11,0.1]
[1758331598183,6.67967158,240.12,240.11,0.1]
[1758331598373,19.20602912,240.12,240.11,0.1]
[1758331600477,21.43543947,240.12,240.11,0.1]
[1758331600871,31.2,240.09,240.07,32.28]
[1758331601070,1.94508721,240.08,240.07,32.28]
[1758331601576,14.4724909,240.08,240.07,32.28]
[1758331602490,49.83776914,240.08,240.07,32.28]
[1758331602685,49.83776914,240.08,240.07,32.95]
[1758331604475,49.83776914,240.08,240.07,32.28]
[1758331605475,18.63776914,240.08,240.07,32.28]
[1758331605682,18.63776914,240.08,240.05,32.26]
[1758331605683,29.62096474,240.08,240.05,32.26]
[1758331605998,1.94508721,240.06,240.05,32.26]
[1758331606373,2.51508721,240.06,240.05,32.26]
[1758331606696,1.94508721,240.06,240.05,32.26]
[1758331607493,14.47353723,240.06,240.05,32.26]
[1758331608295,18.63916249,240.06,240.05,32.26]
[1758331608676,31.2,240.03,240.01,14.36559401]
[1758331608876,31.2,240.03,240.02,32.26]
[1758331609286,43.72949652,240.03,240.02,32.26]
[1758331610299,49.84072962,240.03,240.02,32.26]
[1758331610681,45.67458373,240.03,240.02,32.93]
[1758331611084,49.84072962,240.03,240.02,32.93]
[1758331615995,37.3112331,240.03,240.02,32.93]
[1758331617199,35.36614589,240.03,240.02,32.93]
[1758331617413,37.3112331,240.03,240.02,32.93]
[1758331618783,37.3112331,240.03,240.02,32.26]
[1758331619493,37.3112331,240.03,240.01,13.69559401]
[1758331619701,1.94508721,240.02,240.01,0.1]
[1758331619997,1.94508721,240.02,240.01,32.3]
[1758331620204,2.51508721,240.02,239.92,13.59559401]
[1758331620382,4.16666666,240.0,239.95,13.59559401]
[1758331620582,4.16666666,240.0,239.96,32.2]
[1758331620784,4.16666666,240.0,239.96,32.91]
[1758331621381,4.16718756,239.97,239.96,32.91]
[1758331621586,39.25736198,239.97,239.96,32.91]
[1758331622197,39.25736198,239.97,239.96,32.2]
[1758331622398,39.82736198,239.97,239.91,0.81]
[1758331622605,1.94508721,239.92,239.91,14.40559401]
[1758331622920,1.94508721,239.92,239.91,0.1]
[1758331623380,6.11314322,239.92,239.91,0.81]
[1758331627401,6.11314322,239.92,239.91,0.1]
[1758331632511,6.68314322,239.92,239.91,0.1]
[1758331632685,6.96746636,239.92,239.91,0.1]
[1758331632890,39.14746636,239.92,239.91,0.1]
[1758331636208,31.2,239.89,239.86,0.2]
[1758331636410,1.94508721,239.87,239.86,0.2]
[1758331636609,31.2,239.89,239.86,0.91]
[1758331636798,1.94508721,239.87,239.86,0.91]
[1758331636994,1.94508721,239.87,239.86,0.2]
[1758331637617,6.11401204,239.87,239.86,0.91]
[1758331637817,4.16892483,239.87,239.86,0.91]
[1758331638126,31.2,239.88,239.87,13.59559401]
[1758331638301,31.2,239.88,239.87,46.56559401]
[1758331638503,33.14508721,239.9,239.87,46.56559401]
[1758331638714,31.2,239.9,239.89,13.59559401]
[1758331638921,33.14508721,239.9,239.89,14.30559401]
[1758331639215,33.14508721,239.9,239.89,0.71]
[1758331639716,37.31349071,239.9,239.89,0.71]
[1758331641811,36.61602096,239.9,239.89,0.71]
[1758331642628,36.61602096,239.9,239.87,14.30559401]
[1758331642836,1.24761746,239.88,239.87,13.59559401]
[1758331643516,1.24761746,239.88,239.87,14.30559401]
[1758331643720,32.44761746,239.88,239.87,14.30559401]
[1758331643904,36.6163685,239.88,239.87,13.59559401]
[1758331644109,36.6163685,239.88,239.86,0.2]
[1758331644311,1.24761746,239.87,239.86,0.2]
[1758331645102,32.44761746,239.87,239.86,14.50559401]
[1758331646025,1.24761746,239.87,239.86,14.50559401]
[1758331668560,10.99036773,239.92,239.87,13.59559401]
[1758331668561,31.2,239.92,239.87,13.59559401]
[1758331668855,3.51173184,239.98,239.88,0.7]
[1758331668856,1.24761746,239.89,239.88,0.7]
[1758331669061,1.24761746,239.9,239.89,13.59559401]
[1758331669358,1.24761746,239.9,239.89,14.29559401]
[1758331672651,32.44761746,239.9,239.89,14.29559401]
[1758331673248,1.24761746,239.9,239.89,14.29559401]
[1758331673449,32.44761746,239.9,239.89,14.29559401]
[1758331676448,1.24761746,239.9,239.89,14.29559401]
[1758331676651,32.44761746,239.9,239.89,14.29559401]
[1758331679434,1.24761746,239.9,239.89,14.29559401]
[1758331687553,1.24761746,239.91,239.89,14.29559401]
[1758331687748,31.2,239.95,239.91,13.59559401]
[1758331688050,4.16718756,239.97,239.91,13.59559401]
[1758331688051,1.24761746,239.93,239.91,14.28559401]
[1758331688258,4.05853139,239.93,239.91,14.28559401]
[1758331689380,4.05853139,239.93,239.92,0.69]
[1758331689658,1.24761746,239.93,239.91,14.28559401]
[1758331689863,4.05853139,239.93,239.91,14.28559401]
[1758331690064,1.24761746,239.93,239.91,14.28559401]
[1758331690239,4.05853139,239.93,239.91,14.28559401]
[1758331690440,2.81091393,239.94,239.92,0.69]
[1758331690666,1.24761746,239.96,239.93,13.59559401]
[1758331690851,2.81074598,239.95,239.94,14.28559401]
[1758331691448,4.05836344,239.96,239.94,14.28559401]
[1758331691660,34.01074598,239.97,239.94,14.28559401]
[1758331691864,35.36718135,239.98,239.93,32.08]
[1758331691865,1.24761746,239.98,239.95,14.28559401]
[1758331692162,1.24761746,240.0,239.97,13.59559401]
[1758331692462,2.81015126,239.99,239.98,0.69]
[1758331692668,2.81015126,239.99,239.98,14.28559401]
[1758331693059,4.05776872,240.02,239.99,13.59559401]
[1758331693250,2.81015126,240.01,240.0,14.28559401]
[1758331693644,34.01015126,240.01,240.0,14.28559401]
[1758331696448,31.2,240.01,240.0,14.28559401]
[1758331698069,1.81761746,240.01,239.98,32.08]
[1758331698254,0.57,240.0,239.99,13.59559401]
[1758331698858,6.97142473,240.01,239.98,13.59559401]
[1758331699362,1.24761746,239.99,239.98,13.59559401]
[1758331701451,1.24761746,239.99,239.98,14.28559401]
[1758331701968,1.24761746,239.99,239.98,13.59559401]
[1758331703253,32.44761746,240.0,239.98,14.28559401]
[1758331703573,32.44761746,240.0,239.99,0.69]
[1758331703751,33.14725927,240.0,239.99,0.69]
[1758331704472,1.94725927,240.0,239.99,0.69]
[1758331704671,1.94725927,240.0,239.99,46.34559401]
[1758331704868,37.31390867,240.01,239.99,46.34559401]
[1758331705860,1.94725927,240.0,239.99,46.34559401]
[1758331710278,6.11392593,240.0,239.99,46.34559401]
[1758331712180,1.94725927,240.0,239.99,46.34559401]
[1758331712380,31.2,240.0,239.99,46.34559401]
[1758331712681,31.2,240.0,239.99,46.36559401]
[1758331713070,1.94725927,240.04,240.0,13.59559401]
[1758331713266,2.80479621,240.04,240.02,13.59559401]
[1758331713459,2.80479621,240.04,240.03,32.73]
[1758331714158,2.80479621,240.04,240.03,0.71]
[1758331714568,37.31306301,240.05,240.03,0.71]
[1758331714770,31.2,240.04,240.02,45.63559401]
[1758331715464,31.2,240.04,240.03,0.71]
[1758331716696,37.3130994,240.05,240.03,0.71]
[1758331717377,31.2,240.04,240.03,0.71]
[1758331717957,31.2,240.04,240.03,14.30559401]
[1758331718580,31.2,240.05,240.04,13.59559401]
[1758331718790,33.14725927,240.05,240.04,46.32559401]
[1758331719091,1.94725927,240.05,240.04,45.61559401]
[1758331719584,6.68305806,240.05,240.0,0.71]
[1758331719787,1.94725927,240.03,240.01,45.61559401]
[1758331720081,33.14725927,240.02,240.01,45.61559401]
[1758331720760,37.31357874,240.02,240.01,45.61559401]
[1758331721581,31.2,240.02,240.01,46.32559401]
[1758331722192,35.36631947,240.02,240.01,46.32559401]
[1758331725394,37.31357874,240.02,240.01,13.59559401]
[1758331725597,40.11788783,240.02,240.01,45.61559401]
[1758331725766,51.10368651,240.02,240.0,32.02]
[1758331725967,1.94725927,240.01,240.0,13.59559401]
[1758331726574,4.7520894,240.01,240.0,13.59559401]
[1758331727081,8.91858246,240.01,240.0,13.59559401]
[1758331729679,8.91858246,240.01,240.0,14.30559401]
[1758331729994,6.97132319,240.01,240.0,14.30559401]
[1758331731995,8.91858246,240.01,240.0,14.30559401]
[1758331733395,6.97132319,240.01,240.0,14.30559401]
[1758331733593,8.91858246,240.01,240.0,14.30559401]
[1758331734299,6.97132319,240.01,240.0,14.30559401]
[1758331735504,2.80483013,240.01,240.0,14.30559401]
[1758331735708,34.00483013,240.01,240.0,14.30559401]
[1758331741284,2.80483013,240.01,240.0,14.30559401]
[1758331741487,2.80483013,240.02,240.0,14.30559401]
[1758331741692,2.80483013,240.02,240.01,46.25559401]
[1758331746112,34.00483013,240.02,240.01,46.25559401]
[1758331754025,2.80483013,240.02,240.01,46.25559401]
[1758331754320,2.81055861,240.04,240.01,46.25559401]
[1758331754610,2.81055861,240.04,240.03,13.59559401]
[1758331754817,2.81055861,240.04,240.03,45.55559401]
[1758331755118,2.81055861,240.04,240.03,46.23559401]
[1758331756199,37.31313264,240.05,240.03,46.23559401]
[1758331756419,2.81023434,240.04,240.03,45.55559401]
[1758331756897,2.81023434,240.04,240.03,46.23559401]
[1758331757298,37.31313264,240.05,240.03,46.23559401]
[1758331757908,35.36587337,240.05,240.04,14.27559401]
[1758331758221,38.17601059,240.05,240.04,14.27559401]
[1758331758391,38.17601059,240.05,240.04,13.59559401]
[1758331779918,38.17601059,240.05,240.04,14.27559401]
[1758331781538,38.17601059,240.05,240.04,13.59559401]
[1758331782114,38.17601059,240.05,240.04,45.55559401]
[1758331783638,38.74601059,240.05,240.04,45.55559401]
[1758331784531,38.17601059,240.05,240.04,45.55559401]
[1758331786716,50.70341429,240.05,240.04,45.55559401]
[1758331790237,50.70341429,240.05,240.04,13.59559401]
[1758331790421,50.70341429,240.05,240.04,45.55559401]
[1758331794241,50.70341429,240.05,240.04,46.23559401]
[1758331796127,50.70341429,240.05,240.04,14.27559401]
[1758331796345,50.70341429,240.05,240.04,46.21559401]
[1758331796947,50.70341429,240.05,240.04,45.53559401]
[1758331798044,50.70695914,240.05,240.04,45.53559401]
[1758331799154,19.50695914,240.05,240.04,45.53559401]
[1758331800127,21.32249461,240.05,240.0,0.68]
[1758331800326,1.24553547,240.01,239.97,2.17718575]
[1758331800531,4.05921754,240.01,239.98,32.62]
[1758331800746,12.52949653,240.0,239.99,0.68]
[1758331800931,12.52949653,240.0,239.99,31.94]
[1758331801344,12.52949653,240.0,239.97,2.17718575]
[1758331801649,12.52949653,240.0,239.98,32.62]
[1758331801950,12.52949653,240.0,239.99,0.68]
[1758331802137,16.69616319,240.0,239.99,0.68]
[1758331802342,4.16666666,240.0,239.99,14.27559401]
[1758331802535,16.69616319,240.0,239.99,14.27559401]
[1758331804344,12.52949653,240.0,239.99,14.27559401]
[1758331804526,31.2,240.02,240.0,13.59559401]
[1758331804730,31.2,240.02,240.01,46.21559401]
[1758331805049,34.01194653,240.02,240.01,46.21559401]
[1758331805448,46.54039655,240.02,240.01,46.21559401]
[1758331805657,50.70671602,240.02,240.01,46.21559401]
[1758331805849,50.70671602,240.02,240.01,45.53559401]
[1758331807645,50.70671602,240.02,240.01,46.21559401]
[1758331807851,50.70671602,240.02,240.01,45.53559401]
[1758331808731,50.70671602,240.02,240.01,46.21559401]
[1758331808931,50.70671602,240.02,240.01,13.59559401]
[1758331809131,50.70671602,240.02,240.01,45.53559401]
[1758331809650,61.6925147,240.02,240.0,31.94]
[1758331809841,4.057482,240.01,240.0,31.94]
[1758331810231,15.34144305,240.01,240.0,31.94]
[1758331810431,16.58697852,240.01,240.0,31.94]